Cogmind - Beta 13 @@@ ROGUE MODE // 2024.05.17 @ 20:21:45 Player: BionicBot Result: Destroyed by G-67 Veteran with Field Laser Performance ------------- Evolutions (6) 3000 Regions Visited (17) 3400 Robots Destroyed (180) 900 Value Destroyed (5431) 5431 Prototype IDs (17) 340 Alien Tech Used (0) 0 Bonus (2582) 2582 TOTAL SCORE: 15653 Bonus ------- High Alert Combat Kills 461 Follower Combat Kills 2243 Network Hubs Disabled 400 Met Imprinter 300 Was Imprinted 300 Met R17 at Cetus 500 Friendly Fire -1622 Cogmind --------- Core Integrity 0/1150 Matter 129/300 Energy 100/100 System Corruption 26% Temperature Cool (21) Movement Core (50) Location -4/Hub_04(d) Parts ------- > --- POWER (1) -------- (None) > --- PROPULSION (4) --- (None) > --- UTILITY (12) ----- Enhanced Optical Array Advanced Signal Interpreter Graphene Brace Improved Hacking Suite Improved Hacking Suite Improved Hacking Suite Advanced Hacking Suite Improved System Shield > --- WEAPON (2) ------- (None) > --- INVENTORY (5) ---- Quantum Reactor Hacking Drone Bay (1/1) Heavy Missile Launcher Improved Datajack Phasing Sabre Peak State ------------ > --- POWER ------------ Quantum Reactor > --- PROPULSION ------- Heavy Treads Centrium Heavy Treads > --- UTILITY ---------- Advanced Heat Sink Advanced Heat Sink Advanced Coolant Injector Medium Storage Unit Advanced Visual Processing Unit Advanced Signal Interpreter Improved Targeting Computer Improved Target Analyzer Centrium Medium Armor Plating Graphene Brace Hacking Suite Advanced Hacking Suite > --- WEAPON ----------- Railgun Advanced KE Penetrator > --- INVENTORY -------- Reinforced Fission Core Reinforced Fission Core Z-Drone Bay Hacking Drone Bay Railgun Railgun Heavy Missile Launcher Improved Datajack CR-A16's Pointy Stick Signal Generator [Rating: 117] Favorites ----------- Power Quantum Reactor Engine Makeshift Power Source Power Core Light Nuclear Core Reactor Quantum Reactor Propulsion Improved Flight Unit Treads Light Treads Leg Aluminum Leg Wheel Armored Wheel Flight Unit Improved Flight Unit Utility Medium Storage Unit Device Experimental Sensor Array Storage Medium Storage Unit Processor Advanced Visual Processing Unit Hackware System Shield Protection Centrium Medium Armor Plating Weapon CR-A16's Pointy Stick Energy Gun Beam Rifle Energy Cannon Matter Neutralizer Ballistic Gun Railgun Ballistic Cannon Improved Light Cannon Launcher Rocket Launcher Impact Weapon Hammer Slashing Weapon Makeshift Sword Piercing Weapon CR-A16's Pointy Stick Build | -11 -10 -10 -9 -9 -8 -7 -7 -7 -7 -6 -6 -5 -4 -4 -4 -4 -4 ------- Run | Yrd Mat Min Mat Min Mat Fac Low Low Zio Pro Fac Fac Fac Ext Cet Arc Hub Slots Evolved 12 | . . . 2 . 2 2 . . . . 2 2 2 . . . . Power . | . . . . . . . . . . . . . . . . . . Propulsion 2 | . . . . . . 2 . . . . . . . . . . . Utility 10 | . . . 2 . 2 . . . . . 2 2 2 . . . . Weapon . | . . . . . . . . . . . . . . . . . . Parts Attached 214 | 7 6 14 24 4 36 16 5 5 6 . 14 12 10 27 12 8 8 Power 24 | 1 1 1 1 1 5 4 . . 1 . . 2 . 3 3 . 1 Engine 10 | 1 . 1 1 1 2 2 . . 1 . . 1 . . . . . Core 10 | . 1 . . . 3 2 . . . . . 1 . 3 . . . Reactor 4 | . . . . . . . . . . . . . . . 3 . 1 Propulsion 39 | 2 . 3 5 . 11 5 . . . . 2 2 1 3 1 3 1 Treads 16 | 2 . . 1 . 5 . . . . . . . . 3 1 3 1 Leg 3 | . . 3 . . . . . . . . . . . . . . . Wheel 7 | . . . 4 . 3 . . . . . . . . . . . . Hover . | . . . . . . . . . . . . . . . . . . Flight 13 | . . . . . 3 5 . . . . 2 2 1 . . . . Utility 91 | 2 1 2 8 . 11 5 3 2 4 . 12 6 5 15 6 4 5 Device 53 | 1 . 1 4 . 4 3 3 2 2 . 10 5 3 9 3 . 3 Storage 3 | 1 1 . . . . . . . . . . . . 1 . . . Processor 12 | . . 1 1 . 2 2 . . 2 . 1 . . 2 . . 1 Hackware 9 | . . . . . 1 . . . . . 1 1 2 . . 4 . Protection 14 | . . . 3 . 4 . . . . . . . . 3 3 . 1 Artifact . | . . . . . . . . . . . . . . . . . . Weapon 60 | 2 4 8 10 3 9 2 2 3 1 . . 2 4 6 2 1 1 Energy Gun 11 | 1 2 3 2 . 2 . . . . . . . . 1 . . . Energy Cannon 8 | . . . . . . . . 1 . . . . 4 3 . . . Ballistic Gun 15 | 1 1 2 1 1 3 . . . . . . . . 2 2 1 1 Ballistic Cannon 8 | . . . 5 2 1 . . . . . . . . . . . . Launcher 10 | . 1 3 2 . 1 1 1 1 . . . . . . . . . Special Weapon . | . . . . . . . . . . . . . . . . . . Impact Weapon 3 | . . . . . 2 1 . . . . . . . . . . . Slashing Weapon 1 | . . . . . . . 1 . . . . . . . . . . Piercing Weapon 4 | . . . . . . . . 1 1 . . 2 . . . . . Special Melee Weapon . | . . . . . . . . . . . . . . . . . . Unidentified Prototypes 9 | . . . 1 . 2 1 . . 1 . 1 . . . 3 . . Corrupted Parts 3 | . . . . . . . . . . . . . . 3 . . . System Corruption 20 | . . . . . . . . . . . . . . 20 . . . Parts Lost 52 | . . 4 5 2 12 . . . . . 1 2 . 13 6 1 6 Power 6 | . . . 1 1 1 . . . . . . 1 . 1 . . 1 Propulsion 14 | . . 2 1 . 3 . . . . . . 1 . 3 2 . 2 Utility 21 | . . 1 2 . 5 . . . . . 1 . . 7 3 . 2 Weapon 11 | . . 1 1 1 3 . . . . . . . . 2 1 1 1 Highest Loss Streak 5 | . . 4 3 2 4 . . . . . 1 1 . 4 4 1 5 To Critical Strikes 2 | . . . 1 . 1 . . . . . . . . . . . . Average Slot Usage (%) 92 | . 97 97 95 99 92 91 92 92 92 92 92 88 86 86 85 92 92 Engine 4 | . 6 11 10 11 4 6 . . 3 7 6 2 . . . . . Core 2 | . 7 2 . . 4 . 7 7 3 . . 2 5 4 . . . Treads 6 | . 28 1 2 11 8 . . . . . . . . 6 7 13 14 Leg 2 | . . 26 1 . . . . . . . . . . . . . . Wheel 2 | . . . 16 11 6 . . . . . . . . . . . . Flight 9 | . . . . . . 29 30 30 30 30 26 23 21 6 . . . Device 12 | . 14 1 11 22 14 17 14 14 9 7 12 12 8 17 20 17 9 Storage 8 | . 14 14 11 11 9 7 7 7 7 7 6 5 5 5 5 5 4 Processor 13 | . . 10 10 11 10 12 15 15 20 23 20 17 15 17 21 20 14 Hackware 9 | . . . . . 8 7 7 7 7 7 13 17 24 16 10 13 26 Protection 2 | . . . 7 . 8 . . . . . . . . . 4 5 4 Energy Gun 3 | . 11 14 1 . 6 . . . . . . . . 1 . . . Ballistic Gun 3 | . 13 5 2 . 1 . . . . . . . . . 10 10 9 Ballistic Cannon 2 | . . . 17 21 1 . . . . . . . . . . . . Impact Weapon 1 | . . . . . 7 6 3 . . . . . . . . . . Piercing Weapon 1 | . . . . . . . . 4 7 7 6 4 5 1 . . . Naked Turns . | . . . . . . . . . . . . . . . . . . Heaviest Build 70 | 13 20 25 37 27 37 21 24 20 21 18 20 21 30 70 62 53 51 Greatest Support 150 | 40 40 40 25 12 22 21 21 21 21 21 21 21 21 140 150 136 136 Greatest Overweight (x) 7 | . . 6 2 2 7 . 1 . . . 1 . 1 1 . . . Average Overweight (x) . | . . . 1 1 1 . . . . . . . . . . . . Largest Inventory Capacity 10 | 8 10 10 10 10 10 10 10 10 10 10 10 10 10 10 10 10 10 Average Capacity 9 | 5 9 10 10 10 10 10 10 10 10 10 10 10 10 10 10 10 9 Most Carried 10 | 1 8 10 10 10 10 10 10 10 10 10 10 10 10 10 10 10 10 Average Carried 9 | . 6 9 9 9 9 7 9 9 9 10 9 9 9 9 9 9 8 Final Capacity 10 | 8 10 10 10 10 10 10 10 10 10 10 10 10 10 10 10 10 5 Final Carried 10 | 1 8 10 10 8 10 10 10 10 10 10 9 10 10 10 10 10 5 Class Distribution -------------------- 37% | Scavenger-Mutant 18% | Mutant 14% | Scout 13% | Hacker-Scout 7% | Wizard-Mutant Dominant Class ---------------- Mutant | -10/Materials Scavenger-Mutant | -10/Mines Mutant | -9/Materials Scavenger-Mutant | -9/Mines Scavenger-Mutant | -8/Materials Sprinter | -7/Factory Scout | -7/Lower Caves Scout | -7/Lower Caves Scout | -7/Zion Scout | -6/Proximity Caves Hacker-Scout | -6/Factory Hacker-Scout | -5/Factory Hacker-Scout | -4/Factory Scavenger-Mutant | -4/Extension Scavenger-Mutant | -4/Cetus Scavenger-Mutant | -4/Archives Wizard-Mutant | -4/Hub_04(d) Resources | -11 -10 -10 -9 -9 -8 -7 -7 -7 -7 -6 -6 -5 -4 -4 -4 -4 -4 ----------- Run | Yrd Mat Min Mat Min Mat Fac Low Low Zio Pro Fac Fac Fac Ext Cet Arc Hub Matter Collected 5152 | 273 133 223 1043 313 586 193 72 17 73 42 135 115 98 337 571 521 407 Remotely 50 | . . . . . 50 . . . . . . . . . . . . Salvage Created 6264 | 76 414 135 852 339 1585 245 59 . . . . 33 77 831 285 633 700 Parts 328 | 7 20 16 63 19 72 9 4 . . . . 3 5 36 13 31 30 Haulers Intercepted 12 | . 2 . 4 . 5 . . . . . . . . 1 . . . Recyclers Shooed 6 | . . . 2 . 3 . . . . . . . . 1 . . . Parts Field Recycled . | . . . . . . . . . . . . . . . . . . Retrieved Matter . | . . . . . . . . . . . . . . . . . . Parts Self-Destructed 12 | . . . . . . . 1 . . 11 . . . . . . . Prevented 4 | . . . . . . . . . . 4 . . . . . . . Kills | -11 -10 -10 -9 -9 -8 -7 -7 -7 -7 -6 -6 -5 -4 -4 -4 -4 -4 ------- Run | Yrd Mat Min Mat Min Mat Fac Low Low Zio Pro Fac Fac Fac Ext Cet Arc Hub Combat Hostiles Destroyed 105 | . 7 8 27 10 22 4 4 . . . . . . 11 4 4 4 Melee 8 | . . . . . 7 . 1 . . . . . . . . . . Guns 24 | . 4 2 3 . 2 . . . . . . . . 1 4 4 4 Cannons 41 | . . . 18 10 3 . . . . . . . . 10 . . . AOE 26 | . 3 6 6 . 4 4 3 . . . . . . . . . . Classes Destroyed 16 | 2 3 1 4 1 1 . 1 . . . . . 1 1 . . 1 Worker 9 | . . . 2 . 3 1 . . . . . . . 1 . . 2 Builder 2 | . . . . . 1 . . . . . . . . . . . 1 Tunneler 2 | 1 . 1 . . . . . . . . . . . . . . . Hauler 12 | . 2 . 4 . 5 . . . . . . . . 1 . . . Recycler 11 | 1 . 1 1 2 4 1 . . . . . . . 1 . . . Mechanic 1 | . . . . . . . . . . . . . 1 . . . . Operator 14 | . . . 3 . 1 2 . . . . . . . 1 . 7 . Watcher 17 | . 3 . 3 . 4 3 . . . . . 1 1 . 1 . 1 Swarmer 38 | . . 8 10 5 4 4 3 . . . . . . 3 . . 1 Grunt 39 | . 7 . 10 4 13 . . . . . . . . 5 . . . Brawler 1 | . . . . 1 . . . . . . . . . . . . . Duelist 2 | . . . 1 . 1 . . . . . . . . . . . . Sentry 16 | . . . 6 . 5 . . . . . . . . . . 4 1 Hunter 2 | . . . . . . . . . . . . . . 2 . . . Programmer 4 | . . . . . . . 1 . . . . . . 1 . . 2 Cetus Guard 4 | . . . . . . . . . . . . . . . 4 . . Fireman 6 | . . . . . . . . . . . . . . . . . 6 Best Kill Streak 6 | 2 3 4 5 3 5 6 3 . . . . 1 1 5 2 3 2 Combat Bots Only 5 | . 3 3 5 3 4 4 3 . . . . . . 5 2 2 1 Max Kills in Single Turn 4 | 1 2 2 2 2 2 3 2 . . . . 1 1 1 1 1 4 Gunslinging . | . . . . . . . . . . . . . . . . . . Exploded 2 | . 2 2 2 . 2 2 2 . . . . . . . . . . Melee 1 | . . . . . 1 . 1 . . . . . . . . . . Uniques/NPCs Destroyed . | . . . . . . . . . . . . . . . . . . Combat | -11 -10 -10 -9 -9 -8 -7 -7 -7 -7 -6 -6 -5 -4 -4 -4 -4 -4 -------- Run | Yrd Mat Min Mat Min Mat Fac Low Low Zio Pro Fac Fac Fac Ext Cet Arc Hub Hostile Shots Fired 781 | . 50 31 119 36 128 11 12 2 . . . 14 2 174 97 38 67 Missed 209 | . 9 6 32 12 29 6 4 1 . . . 7 2 47 29 10 15 Damage Taken 11269 | . 530 319 1195 253 1585 79 119 . . . 47 231 . 2690 1886 751 1584 Core 1955 | . 84 30 138 65 367 . 29 . . . . 77 . 597 95 135 338 Absorbed by Shields 38 | . . . . . . . . . . . . . . 38 . . . Ignored by Resistances 134 | . . . . . . . . . . . . . . 134 . . . Regen/Repaired (Parts) 49 | . . . . . . 11 . . 15 . . . 23 . . . . Core Remaining (%) 74 | 100 . 54 . 49 33 . . . . 95 100 92 . . . . . Volleys Fired 455 | 3 51 20 95 23 42 3 2 4 . . . . 19 49 42 44 58 Largest 2 | 2 2 2 2 2 2 1 1 1 . . . . 1 2 2 2 2 Hottest 210 | 60 85 105 104 83 88 33 33 90 . . . . 90 210 70 70 70 Shots Fired 822 | 6 73 41 187 46 69 3 2 4 . . . . 19 97 81 85 109 Gun 456 | 6 71 35 23 . 35 . . . . . . . . 11 81 85 109 Cannon 336 | . . . 153 46 30 . . 2 . . . . 19 86 . . . Launcher 30 | . 2 6 11 . 4 3 2 2 . . . . . . . . . Special . | . . . . . . . . . . . . . . . . . . Kinetic 604 | 3 49 11 167 46 52 . . . . . . . . 1 81 85 109 Thermal 188 | 3 22 24 9 . 13 . . 2 . . . . 19 96 . . . Explosive 30 | . 2 6 11 . 4 3 2 2 . . . . . . . . . Electromagnetic . | . . . . . . . . . . . . . . . . . . Robot Hit Streak 20 | 2 20 6 9 5 11 2 . 1 . . . . . 7 19 13 9 Robot Miss Streak 7 | 2 3 3 6 7 3 2 4 1 . . . . . 6 2 3 2 Penetration Max 1 | . . . . . . . . . . . . . . . 1 1 1 Secondary Targets 2 | . . . . . . . . . . . . . . . 1 . 1 Max Gunslinging Chain 1 | . . . . . . . . . . . . . . . 1 . 1 Shots Hit Robots 583 | 3 54 21 119 29 103 8 6 3 . . . 2 4 68 69 62 32 Core Hits 308 | 3 24 14 70 32 48 6 3 2 . . . 1 3 32 24 24 22 Critical Kills 11 | . . . . . 4 . . . . . . . . . 1 6 . Critical Parts Destroyed 20 | . . . . . 11 . 2 . . . . . . . 5 2 . Critical Strikes 39 | . 2 . . . 17 . 2 . . . . . . . 8 10 . Burn 2 | . 2 . . . . . . . . . . . . . . . . Destroy 18 | . . . . . . . . . . . . . . . 8 10 . Blast 2 | . . . . . 2 . . . . . . . . . . . . Smash 17 | . . . . . 15 . 2 . . . . . . . . . . Melee Attacks 160 | . . . . . 68 15 7 4 . . 2 16 28 20 . . . Impact 90 | . . . . . 68 15 7 . . . . . . . . . . Slashing 3 | . . . . . . . . 3 . . . . . . . . . Piercing 67 | . . . . . . . . 1 . . 2 16 28 20 . . . Sneak Attacks 11 | . . . . . 8 . . . . . . . 1 2 . . . Combat Hostiles 1 | . . . . . 1 . . . . . . . . . . . . Follow-up Attacks . | . . . . . . . . . . . . . . . . . . Damage Inflicted 17770 | 28 655 640 2594 714 3019 659 441 155 . . . 107 233 2813 1922 1879 1911 Guns 6432 | 28 487 311 191 . 431 . . . . . . . . 161 1922 1879 1022 Cannons 5472 | . . . 1924 714 527 . . . . . . . . 2307 . . . Explosions 2853 | . 151 313 470 . 404 384 170 81 . . . . . . . . 880 Melee 2904 | . . . . . 1657 275 271 74 . . . 107 233 287 . . . Ramming 109 | . 17 16 9 . . . . . . . . . . 58 . . 9 Kinetic 8747 | 6 262 56 2025 714 833 . . . . . . . . 28 1922 1879 1022 Thermal 3157 | 22 225 255 90 . 125 . . . . . . . . 2440 . . . Explosive 1973 | . 151 313 470 . 404 384 170 81 . . . . . . . . . Electromagnetic 880 | . . . . . . . . . . . . . . . . . 880 Impact 2203 | . . . . . 1657 275 271 . . . . . . . . . . Slashing 74 | . . . . . . . . 74 . . . . . . . . . Piercing 627 | . . . . . . . . . . . . 107 233 287 . . . Highest Corruption 26 | . 2 2 1 1 . 2 1 . . . . 1 . 20 19 19 26 Average Corruption 9 | . 2 2 1 1 . 1 1 . . . . 1 . 18 19 19 19 Corruption Purged 5 | . . . . . . 2 1 . . . . 1 . 1 . . . Corruption Blocked . | . . . . . . . . . . . . . . . . . . Effects 205 | . 6 20 6 1 . . . . . . . 2 . 65 24 25 56 Message Errors 43 | . 4 3 1 1 . . . . . . . . . 12 4 4 14 Matter Fused 44 | . 1 3 1 . . . . . . . . 1 . 16 9 8 5 Heat Flow Errors 21 | . 1 2 2 . . . . . . . . . . 9 1 . 6 Energy Discharges 20 | . . 2 . . . . . . . . . . . 6 2 5 5 Parts Rejected 3 | . . . . . . . . . . . . . . 2 . . 1 Parts Fused 2 | . . . . . . . . . . . . . . 2 . . . Data Loss (minor) 26 | . . 6 1 . . . . . . . . 1 . 6 4 1 7 Data Loss (major) 10 | . . 2 1 . . . . . . . . . . 2 . 1 4 Misfires 9 | . . 2 . . . . . . . . . . . 4 . 1 2 Alerts 3 | . . . . . . . . . . . . . . . . . 3 Misdirections 5 | . . . . . . . . . . . . . . 3 1 1 . Weapon Failures 19 | . . . . . . . . . . . . . . 3 3 4 9 Overload Shots . | . . . . . . . . . . . . . . . . . . Overflow Damage 968 | . 4 . 54 4 477 138 151 . . . . 21 . 57 . . 62 Projectiles 81 | . . . 17 4 3 . . . . . . . . 57 . . . Explosions 168 | . . . 37 . 51 18 . . . . . . . . . . 62 Melee 719 | . 4 . . . 423 120 151 . . . . 21 . . . . . Knockbacks 74 | . . . 38 15 15 3 3 . . . . . . . . . . Impact 14 | . . . . . 8 3 3 . . . . . . . . . . Kinetic 56 | . . . 36 14 6 . . . . . . . . . . . . Secondary 4 | . . . 2 1 1 . . . . . . . . . . . . Self-Inflicted Damage 329 | . . 29 90 . 32 . . . . . . . . . . . 178 Shots 8 | . . 2 3 . 1 . . . . . . . . . . . 2 Rammed 10 | . 4 . 1 . . . . . . . . . . 3 . . 2 Targets Rammed 12 | . 4 2 1 . . . . . . . . . . 3 . . 2 Kicked 2 | . . 2 . . . . . . . . . . . . . . . Crushed . | . . . . . . . . . . . . . . . . . . Highest Temperature 537 | 20 270 421 537 . 238 229 . 46 . . . . 202 420 106 . 157 Average Temperature 116 | 15 65 121 163 . 46 93 . 22 . . . . 76 113 60 . 66 Received Heat Transfer 2481 | . 297 117 327 96 783 18 . . . . . . . 505 126 72 140 Effects 4 | . . 1 3 . . . . . . . . . . . . . . Shutdowns 2 | . . 1 1 . . . . . . . . . . . . . . Energy Bleed 1 | . . . 1 . . . . . . . . . . . . . . Interference 1 | . . . 1 . . . . . . . . . . . . . . Siege Activations . | . . . . . . . . . . . . . . . . . . Robots Corrupted 3 | . . . . . . . . . . . . . . . . . 3 Combat Hostiles . | . . . . . . . . . . . . . . . . . . Parts Fried 23 | . 2 . . . 12 7 . . . . . . . . . . 2 Impact Corruptions 31 | . 1 . . . 18 6 6 . . . . . . . . . . Robots Melted . | . . . . . . . . . . . . . . . . . . Combat Hostiles . | . . . . . . . . . . . . . . . . . . Parts Melted 7 | . 1 1 . . . . . . . . . . . 3 . . 2 Heat Transferred 4499 | 50 657 606 222 . 296 . . . . . . . . 2668 . . . Parts Sabotaged . | . . . . . . . . . . . . . . . . . . Parts Stolen 1 | . . . . . . . . 1 . . . . . . . . . Parts Stripped . | . . . . . . . . . . . . . . . . . . Power Chain Reactions . | . . . . . . . . . . . . . . . . . . Alert | -11 -10 -10 -9 -9 -8 -7 -7 -7 -7 -6 -6 -5 -4 -4 -4 -4 -4 ------- Run | Yrd Mat Min Mat Min Mat Fac Low Low Zio Pro Fac Fac Fac Ext Cet Arc Hub Peak Influence 999 | 10 176 236 752 687 590 601 . . . . 406 100 193 481 243 242 999 Initial 285 | . 6 4 11 285 189 203 . . . . 269 81 37 21 213 17 17 Average 292 | 4 69 94 446 473 434 360 . . . . 240 68 93 292 160 172 553 Maximum Alert Level 3 | . . 1 3 2 2 2 . . . . 2 . . 2 1 1 3 Low Security (%) 38 | 100 100 91 24 . . . . . . . 15 100 100 10 73 55 16 Level 1 30 | . . 8 16 21 22 65 . . . . 83 . . 82 26 44 12 Level 2 26 | . . . 41 78 76 34 . . . . . . . 6 . . 39 Level 3 4 | . . . 17 . . . . . . . . . . . . . 31 Level 4 . | . . . . . . . . . . . . . . . . . . Level 5 . | . . . . . . . . . . . . . . . . . . High Security . | . . . . . . . . . . . . . . . . . . Max Security . | . . . . . . . . . . . . . . . . . . Squads Dispatched 21 | . 1 1 5 . 2 4 . . . . 1 1 2 . . . 4 Investigation 8 | . 1 . 3 . 1 2 . . . . . . 1 . . . . Extermination 5 | . . . . . . 1 . . . . 1 1 1 . . . 1 Reinforcement 5 | . . . 2 . 1 1 . . . . . . . . . . 1 Assault 3 | . . 1 . . . . . . . . . . . . . . 2 Garrison . | . . . . . . . . . . . . . . . . . . Intercept . | . . . . . . . . . . . . . . . . . . Searches Triggered . | . . . . . . . . . . . . . . . . . . Construction Impeded . | . . . . . . . . . . . . . . . . . . Haulers Reinforced 1 | . . . . . . . . . . . . . . . . . 1 Active Scanning Responses . | . . . . . . . . . . . . . . . . . . Cargo Convoy Interrupts . | . . . . . . . . . . . . . . . . . . Stealth | -11 -10 -10 -9 -9 -8 -7 -7 -7 -7 -6 -6 -5 -4 -4 -4 -4 -4 --------- Run | Yrd Mat Min Mat Min Mat Fac Low Low Zio Pro Fac Fac Fac Ext Cet Arc Hub Distress Signals 19 | . . . 3 . 3 1 . . . . . . 5 2 2 . 3 Communications Jammed . | . . . . . . . . . . . . . . . . . . Distress Signals . | . . . . . . . . . . . . . . . . . . Times Spotted 284 | . 14 17 41 14 40 23 6 1 . 1 4 8 11 44 10 20 30 Peak Tracking Total 7 | . 3 4 6 4 5 7 3 1 . 1 3 5 6 6 5 2 6 Tactical Retreats 29 | . . 1 1 . 5 8 1 . . . . 2 5 5 . . 1 Traps | -11 -10 -10 -9 -9 -8 -7 -7 -7 -7 -6 -6 -5 -4 -4 -4 -4 -4 ------- Run | Yrd Mat Min Mat Min Mat Fac Low Low Zio Pro Fac Fac Fac Ext Cet Arc Hub Traps Triggered 13 | . 2 . 2 . 1 3 . . . . 1 3 . . . . 1 Indirectly 1 | . . . . . . . . . . . . . . . . . 1 Trap Hack Attempts . | . . . . . . . . . . . . . . . . . . Triggered . | . . . . . . . . . . . . . . . . . . Disarmed . | . . . . . . . . . . . . . . . . . . Reprogrammed . | . . . . . . . . . . . . . . . . . . Reused . | . . . . . . . . . . . . . . . . . . Traps Extracted . | . . . . . . . . . . . . . . . . . . Installed . | . . . . . . . . . . . . . . . . . . Triggered 2 | . . . . . . . 1 . . 1 . . . . . . . Machines | -11 -10 -10 -9 -9 -8 -7 -7 -7 -7 -6 -6 -5 -4 -4 -4 -4 -4 ---------- Run | Yrd Mat Min Mat Min Mat Fac Low Low Zio Pro Fac Fac Fac Ext Cet Arc Hub Machines Disabled 36 | . 1 1 6 . 1 2 . 1 . . . . . 1 . 5 18 Max in Single Turn 10 | . 1 . 1 . 1 . . 1 . . . . . 1 . 1 10 Garrison Access 5 | . . . . . 1 . . . . . . 1 2 . . . 1 Network Hub 2 | . . . . . . . . . . . . . . . . . 2 Machines Repaired . | . . . . . . . . . . . . . . . . . . Machines Dismantled . | . . . . . . . . . . . . . . . . . . Machines Sabotaged . | . . . . . . . . . . . . . . . . . . Overloaded Fab Kills . | . . . . . . . . . . . . . . . . . . Hacking | -11 -10 -10 -9 -9 -8 -7 -7 -7 -7 -6 -6 -5 -4 -4 -4 -4 -4 --------- Run | Yrd Mat Min Mat Min Mat Fac Low Low Zio Pro Fac Fac Fac Ext Cet Arc Hub Machines Accessed 44 | . 6 . 7 . 5 9 . 1 1 . 1 2 3 6 1 1 1 Terminals 29 | . 6 . 7 . 4 5 . . . . . . . 6 1 . . Fabricators . | . . . . . . . . . . . . . . . . . . Repair Stations 5 | . . . . . . 3 . . . . . 1 1 . . . . Recycling Units . | . . . . . . . . . . . . . . . . . . Scanalyzers 1 | . . . . . . . . . . . 1 . . . . . . Garrison Access 6 | . . . . . 1 1 . . . . . 1 2 . . . 1 Total Hacks 117 | . 16 . 21 . 18 35 . 1 3 . 2 3 4 10 2 1 1 Successful 56 | . 8 . 7 . 7 16 . 1 3 . 2 1 4 5 . 1 1 Failed 60 | . 7 . 14 . 11 19 . . . . . 2 . 5 2 . . Catastrophic 8 | . 1 . 2 . . 4 . . . . . . . . 1 . . Database Lockouts 1 | . 1 . . . . . . . . . . . . . . . . Manual 96 | . 12 . 17 . 12 9 . . 5 . 6 4 4 5 2 8 12 Terminals 87 | . 16 . 21 . 16 22 . . . . . . . 10 2 . . Fabricators . | . . . . . . . . . . . . . . . . . . Repair Stations 13 | . . . . . . 10 . . . . . 1 2 . . . . Recycling Units . | . . . . . . . . . . . . . . . . . . Scanalyzers 2 | . . . . . . . . . . . 2 . . . . . . Garrison Access 10 | . . . . . 2 3 . . . . . 2 2 . . . 1 Terminal Hacks 24 | . 4 . 2 . 2 6 . 1 3 . . . . 5 . 1 . Record 1 | . . . . . . . . . . . . . . . . 1 . Part Schematic 3 | . . . . . . . . . 3 . . . . . . . . Prototype ID Bank 5 | . 2 . 1 . . 2 . . . . . . . . . . . Open Door 6 | . . . . . . . . 1 . . . . . 5 . . . Level Access Points 1 | . . . . . 1 . . . . . . . . . . . . Branch Access Points 3 | . 1 . 1 . . 1 . . . . . . . . . . . Locate Traps 2 | . 1 . . . . 1 . . . . . . . . . . . Hauler Manifests 1 | . . . . . 1 . . . . . . . . . . . . Registered Components 1 | . . . . . . 1 . . . . . . . . . . . Zone Layout 1 | . . . . . . 1 . . . . . . . . . . . Fabricator Hacks . | . . . . . . . . . . . . . . . . . . Repair Station Hacks 6 | . . . . . . 4 . . . . . . 2 . . . . Scan Component 4 | . . . . . . 3 . . . . . . 1 . . . . Repair 2 | . . . . . . 1 . . . . . . 1 . . . . Recycling Unit Hacks . | . . . . . . . . . . . . . . . . . . Scanalyzer 2 | . . . . . . . . . . . 2 . . . . . . Insert Component 1 | . . . . . . . . . . . 1 . . . . . . Analyze 1 | . . . . . . . . . . . 1 . . . . . . Garrison Access Hacks 5 | . . . . . 1 . . . . . . 1 2 . . . 1 Seal Access 5 | . . . . . 1 . . . . . . 1 2 . . . 1 Unauthorized Hacks 19 | . 4 . 5 . 4 6 . . . . . . . . . . . Terminals 19 | . 4 . 5 . 4 6 . . . . . . . . . . . Assimilate 1 | . . . . . . 1 . . . . . . . . . . . Botnet 18 | . 4 . 5 . 4 5 . . . . . . . . . . . Fabricators . | . . . . . . . . . . . . . . . . . . Repair Stations . | . . . . . . . . . . . . . . . . . . Recycling Units . | . . . . . . . . . . . . . . . . . . Scanalyzers . | . . . . . . . . . . . . . . . . . . Garrison Access . | . . . . . . . . . . . . . . . . . . Data Cores Recovered 3 | . . . 1 . . 1 . . . . . . . 1 . . . Used . | . . . . . . . . . . . . . . . . . . Hacking Detections 30 | . 5 . 6 . 3 9 . . . . 1 1 . 3 2 . . Full Trace Events 5 | . 1 . 2 . . 2 . . . . . . . . . . . Feedback Events 2 | . . . . . . 2 . . . . . . . . . . . Corruption 2 | . . . . . . 2 . . . . . . . . . . . Feedback Blocked . | . . . . . . . . . . . . . . . . . . Robot Schematics Acquired . | . . . . . . . . . . . . . . . . . . Robots Built . | . . . . . . . . . . . . . . . . . . Authchips . | . . . . . . . . . . . . . . . . . . Time . | . . . . . . . . . . . . . . . . . . Total Robot Build Rating . | . . . . . . . . . . . . . . . . . . Part Schematics Acquired 4 | . . . . . . . . . 3 . 1 . . . . . . Parts Built . | . . . . . . . . . . . . . . . . . . Authchips . | . . . . . . . . . . . . . . . . . . Time . | . . . . . . . . . . . . . . . . . . Total Part Build Rating . | . . . . . . . . . . . . . . . . . . Parts Repaired 2 | . . . . . . 1 . . . . . . 1 . . . . Time 244 | . . . . . . 136 . . . . . . 108 . . . . Parts Recycled . | . . . . . . . . . . . . . . . . . . Recycled Matter . | . . . . . . . . . . . . . . . . . . Retrieved Matter . | . . . . . . . . . . . . . . . . . . Retrieved Components . | . . . . . . . . . . . . . . . . . . Parts Scanalyzed 1 | . . . . . . . . . . . 1 . . . . . . Part Schematics Acquired 1 | . . . . . . . . . . . 1 . . . . . . Parts Damaged 1 | . . . . . . . . . . . 1 . . . . . . Bothacking | -11 -10 -10 -9 -9 -8 -7 -7 -7 -7 -6 -6 -5 -4 -4 -4 -4 -4 ------------ Run | Yrd Mat Min Mat Min Mat Fac Low Low Zio Pro Fac Fac Fac Ext Cet Arc Hub Used RIF Installer . | . . . . . . . . . . . . . . . . . . Robots Hacked . | . . . . . . . . . . . . . . . . . . Non-combat . | . . . . . . . . . . . . . . . . . . Combat . | . . . . . . . . . . . . . . . . . . Robot Hacks Applied . | . . . . . . . . . . . . . . . . . . Relay Couplers Released . | . . . . . . . . . . . . . . . . . . Fabnet Peak Effective % . | . . . . . . . . . . . . . . . . . . Robots Rewired 7 | . . . . . . 1 . . . . . . . 6 . . . Allies Hacked 1 | . . . . . . . . . . . 1 . . . . . . Hacks Repelled 1 | . . . . . . . . . . . . . . . . . 1 Allies | -11 -10 -10 -9 -9 -8 -7 -7 -7 -7 -6 -6 -5 -4 -4 -4 -4 -4 -------- Run | Yrd Mat Min Mat Min Mat Fac Low Low Zio Pro Fac Fac Fac Ext Cet Arc Hub Total Allies 41 | . . 3 . 4 . 2 . . 11 . . . . 12 . . 9 Largest Group 11 | . . 2 2 4 4 1 1 . 11 11 10 4 . 7 7 . 8 Highest-Rated Group 350 | . . 38 38 71 71 21 10 . 350 350 319 115 . 320 255 . 312 Highest-Rated Ally 159 | . . 31 31 31 31 21 10 . 41 41 41 31 . 159 46 . 39 Zionite Dispatches 4 | . . . . . . . . . . . . . 1 . . . 3 Recon 1 | . . . . . . . . . . . . . 1 . . . . Fire 3 | . . . . . . . . . . . . . . . . . 3 Total Orders 10 | . . . . . . . . . . . 8 1 1 . . . . STAY 1 | . . . . . . . . . . . 1 . . . . . . ROAM 1 | . . . . . . . . . . . 1 . . . . . . FOLLOW 1 | . . . . . . . . . . . 1 . . . . . . EXPLORE 1 | . . . . . . . . . . . 1 . . . . . . RETURN 6 | . . . . . . . . . . . 4 1 1 . . . . Ally Attacks 305 | . . 17 22 15 18 10 . . . 21 19 9 . 68 51 . 55 Total Damage 6174 | . . 313 273 195 189 344 . . . 412 340 102 . 2145 980 . 881 Kills 68 | . . 7 4 4 4 3 . . . 10 5 . . 14 4 . 13 Allies Corrupted 4 | . . . . . . . . . . . 1 . . . . . 3 Allies Melted . | . . . . . . . . . . . . . . . . . . Intel | -11 -10 -10 -9 -9 -8 -7 -7 -7 -7 -6 -6 -5 -4 -4 -4 -4 -4 ------- Run | Yrd Mat Min Mat Min Mat Fac Low Low Zio Pro Fac Fac Fac Ext Cet Arc Hub Robot Analysis Total . | . . . . . . . . . . . . . . . . . . Derelict Logs Recovered 7 | . . 1 . 2 . . 1 1 1 1 . . . . . . . Drone Launches 6 | . . . . . . . . . . . 4 1 1 . . . . Drone Recoveries 6 | . . . . . . . . . . . 4 1 1 . . . . Decoded 0b10 Intel 140 | . . . . . . . . . . . 37 42 53 8 . . . Items 140 | . . . . . . . . . . . 37 42 53 8 . . . Zionite Intel Received 2 | . . . . . . . . . . . . 1 . . . . 1 Active Terminals 1 | . . . . . . . . . . . . 1 . . . . . Depthwide Sectors/-1 1 | . . . . . . . . . . . . . . . . . 1 Exploration | -11 -10 -10 -9 -9 -8 -7 -7 -7 -7 -6 -6 -5 -4 -4 -4 -4 -4 ------------- Run | Yrd Mat Min Mat Min Mat Fac Low Low Zio Pro Fac Fac Fac Ext Cet Arc Hub Turns Passed 14503 | 97 961 1195 1364 498 2140 763 282 214 843 376 669 588 809 1727 483 469 1025 Spaces Moved 14860 | 50 514 908 894 346 1070 1710 830 510 1469 403 1061 1304 1371 1460 209 202 549 Core 53 | 2 . 1 . . 4 . . . . . . . . . . . 46 Treads 2596 | 48 514 22 3 . 452 . . . . . . . . 643 209 202 503 Legs 955 | . . 885 70 . . . . . . . . . . . . . . Wheels 1781 | . . . 821 346 614 . . . . . . . . . . . . Hover . | . . . . . . . . . . . . . . . . . . Flight 9475 | . . . . . . 1710 830 510 1469 403 1061 1304 1371 817 . . . Fastest Speed 28 | 50 160 120 90 105 110 28 29 29 29 29 29 28 28 28 160 160 50 Average Speed 69 | 155 160 121 110 119 153 28 29 29 29 29 29 28 28 86 160 160 150 Slowest Speed 400 | 160 160 350 240 120 400 29 104 29 29 29 107 29 99 160 160 160 160 Overloaded Moves . | . . . . . . . . . . . . . . . . . . Propulsion Burnouts . | . . . . . . . . . . . . . . . . . . Robots Hopped 43 | . . . . . . 17 3 . 1 . 4 3 11 4 . . . Cave-ins Triggered . | . . . . . . . . . . . . . . . . . . Exploration Rate (%) 62 | 4 83 99 89 47 71 53 90 64 92 69 24 29 31 93 59 88 44 Regions Visited 17 Branch Regions 10 Pre-discovered Areas 7 | . . . . 2 . . . . 1 . . . . . . . 4 Known Exits Taken 15 | . 1 1 1 . 1 1 1 1 1 1 1 1 1 1 1 1 . Unknown Exits Taken 2 | 1 . . . 1 . . . . . . . . . . . . . Scrap Searched 12 | . . 1 . 1 . . 4 2 4 . . . . . . . . Spaces Dug 110 | . . . . . 4 5 . 2 . . 2 6 40 1 . . 50 Terrain Destroyed 705 | . 13 39 64 2 36 15 20 18 . . 2 6 40 10 10 15 415 Melee 40 | . . . . . 4 5 . 1 . . 2 6 21 1 . . . Projectile 130 | . . . 5 2 . . . 1 . . . . 19 9 10 15 69 AOE 534 | . 13 39 59 . 32 10 20 16 . . . . . . . . 345 Terrain Rammed . | . . . . . . . . . . . . . . . . . . Walls Destroyed . | . . . . . . . . . . . . . . . . . . Machines Disabled . | . . . . . . . . . . . . . . . . . . Actions | -11 -10 -10 -9 -9 -8 -7 -7 -7 -7 -6 -6 -5 -4 -4 -4 -4 -4 --------- Run | Yrd Mat Min Mat Min Mat Fac Low Low Zio Pro Fac Fac Fac Ext Cet Arc Hub Total 17905 | 60 588 959 1079 383 1380 1931 850 568 1884 661 1410 1489 1711 1783 277 260 632 Wait 1999 | . 2 7 41 9 137 150 2 40 403 259 328 148 284 184 1 . 4 Move 14763 | 49 513 907 893 345 1069 1678 825 509 1466 402 1052 1298 1348 1451 208 201 549 Hop 37 | . . . . . . 14 1 . 1 . 4 2 11 4 . . . Pick Up 62 | 1 8 4 9 . 5 3 3 1 2 . 2 5 3 10 4 2 . Fast Attach 104 | 7 . 5 12 2 24 5 . 2 3 . 5 5 3 18 5 5 3 Attach 52 | . 1 1 5 2 3 7 2 3 . . 2 6 6 8 1 1 4 Detach 47 | . 1 . 4 . 4 7 2 3 1 . 3 5 5 6 . 2 4 Swap 58 | . 5 8 7 . 9 4 3 . 3 . 7 1 1 1 6 2 1 Drop 97 | . 3 5 12 2 19 5 3 2 5 . 5 3 3 11 10 3 6 Fire 455 | 3 51 20 95 23 42 3 2 4 . . . . 19 49 42 44 58 Melee 160 | . . . . . 68 15 7 4 . . 2 16 28 20 . . . Ram 2 | . . . 1 . . . . . . . . . . . . . 1 Kick 2 | . . 2 . . . . . . . . . . . . . . . Crush 8 | . 4 . . . . . . . . . . . . 3 . . 1 Escape Stasis 36 | . . . . . . 36 . . . . . . . . . . . Rewire 23 | . . . . . . 4 . . . . . . . 18 . . 1 Trap . | . . . . . . . . . . . . . . . . . . Miscellaneous . | . . . . . . . . . . . . . . . . . . Route ------- -11/Scrapyard -10/Materials (discovered 5 exits: *Mat x3 / *Min x2) -10/Mines (discovered 2 exits: *Mat x2) -9/Materials (discovered 5 exits: *Mat x2 / *Min x2 / *Sto) -9/Mines -8/Materials (discovered 3 exits: *Fac x3) -7/Factory (discovered 5 exits: *Fac x3 / *Low x2) -7/Lower Caves -7/Lower Caves (discovered 2 exits: *Fac / *Zio) -7/Zion -6/Proximity Caves -6/Factory (discovered 6 exits: *Fac x4 / Low x2) -5/Factory (discovered 2 exits: *Fac / *Upp) -4/Factory (discovered 8 exits: *Res x4 / *Upp x2 / *Ext x2) -4/Extension (discovered 2 exits: *Res / *Cet) -4/Cetus (discovered 2 exits: *Res / *Arc) -4/Archives (discovered 3 exits: *Res / *Hub x2) -4/Hub_04(d) (discovered 1 exit: *Res) History --------- Turn | Location | Event 63 | -11/Scrapyard | Discovered new exit (range 14) 98 | -11/Scrapyard | Entered Materials 306 | -10/Materials | Build established: Mutant 310 | -10/Materials | Discovered new exit (range 14) 420 | -10/Materials | Central database locked down 534 | -10/Materials | Discovered new exit (range 14) 605 | -10/Materials | Discovered new exit (range 11) 695 | -10/Materials | Discovered new exit (range 16) 929 | -10/Materials | Discovered new exit (range 15) 955 | -10/Materials | Identified exit to Mines 1059 | -10/Materials | Entered Mines 1060 | -10/Mines | Met a Derelict testing a Signal Generator 1067 | -10/Mines | Found Signal Generator 1147 | -10/Mines | Lost 4 parts (2n1u1w) 1208 | -10/Mines | Discovered new exit (range 15) 1339 | -10/Mines | Discovered new exit (range 11) 1360 | -10/Mines | Learned Materials emergency access door positions 1390 | -10/Mines | Identified exit to Materials 1429 | -10/Mines | Build established: Scavenger-Mutant 1784 | -10/Mines | Received a Rocket Launcher from a helpful Derelict 2115 | -10/Mines | Found a damaged Exp. Sensor Array with a note attached 2118 | -10/Mines | Found Prototype Device 2254 | -10/Mines | Entered Materials 2254 | -9/Materials | Accompanied by 2 allies 2254 | -9/Materials | Evolved 2 slots: Utility x2 2254 | -9/Materials | Identified Exp. Sensor Array 2259 | -9/Materials | Led the pair of lost Derelicts to an unsafe place 2452 | -9/Materials | Discovered new exit (range 5) 2466 | -9/Materials | Identified exit to Storage 2550 | -9/Materials | Discovered new exit (range 11) 2665 | -9/Materials | Build established: Mutant 2856 | -9/Materials | Discovered new exit (range 13) 2963 | -9/Materials | Lost 3 parts (1p2u) 3333 | -9/Materials | Discovered new exit (range 10) 3456 | -9/Materials | Identified exit to Mines 3562 | -9/Materials | Build established: Scavenger-Mutant 3618 | -9/Materials | Entered Mines 3745 | -9/Mines | Escorted by a lone wolf Derelict 3749 | -9/Mines | Learned location of Storage (-9) 3806 | -9/Mines | Assisted by bots powering up and referring to "LRC-V3" 3816 | -9/Mines | Discovered new exit (range 7) 3893 | -9/Mines | Core integrity fell below 50% 3985 | -9/Mines | Learned location of Zion (-7) 4116 | -9/Mines | Entered Materials 4116 | -8/Materials | Accompanied by 4 allies 4116 | -8/Materials | Evolved 2 slots: Utility x2 4171 | -8/Materials | Lost 3 allies 4429 | -8/Materials | Build established: Mutant 4584 | -8/Materials | Lost 3 parts (2n1w) 4672 | -8/Materials | Lost 4 parts (1p2u1w) 4693 | -8/Materials | Identified exit to Factory 4949 | -8/Materials | Build established: Scavenger-Mutant 5319 | -8/Materials | Core integrity fell below 50% 6256 | -8/Materials | Entered Factory 6256 | -7/Factory | Evolved 2 slots: Propulsion x2 6775 | -7/Factory | Repaired Broken Exp. Sensor Array? 6825 | -7/Factory | Discovered new exit (range 19) 6830 | -7/Factory | Identified exit to Factory 6835 | -7/Factory | Discovered exit to Factory (range 5) 6934 | -7/Factory | Discovered exit to Factory (range 5) 6998 | -7/Factory | Identified exit to Lower Caves 7019 | -7/Factory | Entered Lower Caves 7019 | -7/Lower Caves | Accompanied by 1 ally 7089 | -7/Lower Caves | Build established: Scout 7231 | -7/Lower Caves | Discovered new exit (range 18) 7236 | -7/Lower Caves | Identified exit to Lower Caves 7301 | -7/Lower Caves | Entered another Lower Caves area 7301 | -7/Lower Caves | Discovered exit to Factory (range 20) 7304 | -7/Lower Caves | Learned Factory stockpile data 7511 | -7/Lower Caves | Discovered new exit (range 15) 7514 | -7/Lower Caves | Identified exit to Zion 7515 | -7/Lower Caves | Entered Zion 7528 | -7/Zion | Given the Hacking Drone Bay 7529 | -7/Zion | Found Prototype Device 7530 | -7/Zion | Identified Hacking Drone Bay 7535 | -7/Zion | Discovered new exit (range 16) 7582 | -7/Zion | Found CR-A16's Pointy Stick 7602 | -7/Zion | Given A8's code to call for help 7603 | -7/Zion | Acquired unknown access codes intercepted by a Zionite 7612 | -7/Zion | Received a visual enhancement algorithm 7718 | -7/Zion | Gained Derelict followers 7795 | -7/Zion | Imprinted 7797 | -7/Zion | Declared Zion's savior 7876 | -7/Zion | Learned Factory terminal intel 7883 | -7/Zion | Learned Factory recycling unit intel 8045 | -7/Zion | Identified exit to Proximity Caves 8358 | -7/Zion | Entered Proximity Caves 8358 | -6/Proximity Caves | Accompanied by 11 allies 8511 | -6/Proximity Caves | Spotted B-75 Beast 8622 | -6/Proximity Caves | Learned Factory emergency access door positions 8653 | -6/Proximity Caves | Discovered exit to Factory (range 6) 8734 | -6/Proximity Caves | Entered Factory 8734 | -6/Factory | Accompanied by 10 allies 8734 | -6/Factory | Evolved 2 slots: Utility x2 8737 | -6/Factory | Loaded intel: 26 terminal locations 8738 | -6/Factory | Loaded intel: 6 recycling unit locations 8869 | -6/Factory | Identified exit to DSF 8923 | -6/Factory | Discovered new exit (range 5) 8925 | -6/Factory | Identified exit to Factory 8963 | -6/Factory | Identified exit to Lower Caves 9067 | -6/Factory | Build established: Hacker-Scout 9403 | -6/Factory | Entered another Factory area 9403 | -5/Factory | Accompanied by 4 allies 9403 | -5/Factory | Evolved 2 slots: Utility x2 9404 | -5/Factory | Identified exit to Upper Caves 9422 | -5/Factory | Discovered new exit (range 6) 9423 | -5/Factory | Identified exit to Factory 9519 | -5/Factory | Retrieved Zion intel report: Active Terminals 9991 | -5/Factory | Entered another Factory area 9991 | -4/Factory | Evolved 2 slots: Utility x2 9996 | -4/Factory | Discovered new exit (range 19) 10043 | -4/Factory | Identified exit to Upper Caves 10043 | -4/Factory | Identified exit to Extension 10046 | -4/Factory | Identified exit to Research 10163 | -4/Factory | Repaired Exp. Sensor Array? 10541 | -4/Factory | Zion Recon squad teleported in 10567 | -4/Factory | Spotted B-86 Titan 10800 | -4/Factory | Entered Extension 10834 | -4/Extension | Spotted B-86 Titan 10923 | -4/Extension | Rescued a captive Derelict 10948 | -4/Extension | Rescued A7 11262 | -4/Extension | Allies destroyed B-86 Titan 11285 | -4/Extension | Lost 4 parts (1p2n1u) 11286 | -4/Extension | System corruption reached 10% 11293 | -4/Extension | Spotted B-86 Titan 11332 | -4/Extension | Allies destroyed B-86 Titan 11338 | -4/Extension | Extracted ID and sensor layout for unrecognized location from A7's data core 11340 | -4/Extension | Lost 3 allies 11413 | -4/Extension | Lost 4 parts (1n3u) 11487 | -4/Extension | Found Hvy. Reflective Plating 11575 | -4/Extension | Disrupted transfer network 11776 | -4/Extension | Discovered new exit (range 20) 11778 | -4/Extension | Discovered exit to Research (range 19) 11802 | -4/Extension | Build established: Scavenger-Mutant 11872 | -4/Extension | Rescued a captive Derelict 11956 | -4/Extension | Rescued a captive Derelict 12014 | -4/Extension | Rescued a captive Derelict 12015 | -4/Extension | Rescued a captive Derelict 12029 | -4/Extension | Terminal network hard line cut 12152 | -4/Extension | Core integrity fell below 50% 12371 | -4/Extension | Identified exit to Cetus 12527 | -4/Extension | Entered Cetus 12527 | -4/Cetus | Accompanied by 7 allies 12545 | -4/Cetus | Spotted Cetus Guard 12545 | -4/Cetus | Spotted Cetus Guard 12549 | -4/Cetus | Spotted Cetus Guard 12551 | -4/Cetus | Spotted Cetus Guard 12567 | -4/Cetus | Allies destroyed Cetus Guard 12574 | -4/Cetus | Allies destroyed Cetus Guard 12597 | -4/Cetus | Destroyed Cetus Guard 12612 | -4/Cetus | Allies destroyed Cetus Guard 12624 | -4/Cetus | Lost 6 allies 12642 | -4/Cetus | Lost 4 parts (1n2u1w) 12756 | -4/Cetus | Discovered new exit (range 19) 12791 | -4/Cetus | Spotted Cetus Guard 12791 | -4/Cetus | Spotted Cetus Guard 12794 | -4/Cetus | Spotted Cetus Guard 12810 | -4/Cetus | Allies destroyed Cetus Guard 12827 | -4/Cetus | Spotted Cetus Guard 12828 | -4/Cetus | Destroyed Cetus Guard 12864 | -4/Cetus | Destroyed Cetus Guard 12867 | -4/Cetus | Destroyed Cetus Guard 12876 | -4/Cetus | Discovered exit to Research (range 20) 12890 | -4/Cetus | Scared off Revision 17 13008 | -4/Cetus | Identified exit to Archives 13010 | -4/Cetus | Entered Archives 13111 | -4/Archives | Discovered new exit (range 20) 13121 | -4/Archives | Discovered new exit (range 19) 13143 | -4/Archives | Unable to access archive contents 13170 | -4/Archives | Unable to access archive contents 13244 | -4/Archives | Discovered exit to Research (range 17) 13373 | -4/Archives | Identified exit to Hub_04(d) 13479 | -4/Archives | Entered Hub_04(d) 13509 | -4/Hub_04(d) | Zion Fire squad teleported in 13519 | -4/Hub_04(d) | Discovered exit to Research (range 19) 13629 | -4/Hub_04(d) | Zion Fire squad teleported in 13710 | -4/Hub_04(d) | Build established: Wizard-Mutant 13765 | -4/Hub_04(d) | Zion Fire squad teleported in 13833 | -4/Hub_04(d) | Network Hub disabled 13865 | -4/Hub_04(d) | Lost 5 allies 14138 | -4/Hub_04(d) | Zion dispatch access revoked 14229 | -4/Hub_04(d) | First assault squad dispatched 14243 | -4/Hub_04(d) | Retrieved Zion intel report: Depthwide Sectors/-1 14448 | -4/Hub_04(d) | Network Hub disabled 14448 | -4/Hub_04(d) | Spotted Lightning 14456 | -4/Hub_04(d) | Core integrity fell below 20% 14470 | -4/Hub_04(d) | Spotted Lightning 14472 | -4/Hub_04(d) | Spotted Lightning 14504 | -4/Hub_04(d) | Destroyed by G-67 Veteran with Field Laser Last Messages --------------- 14478_ Dropped Imp. Treads. 14478_ Penetrated by EMDS Slug. 14479_ ALERT: Significant disruption in Zone 2E, assault force dispatched. 14479_ Dropped Centrium Medium Armor Plating. 14479_ Dropped Med. Storage Unit. 14480_ Penetrated by EMDS Slug. 14480_ Imp. Targeting Computer destroyed. 14481_ Signal Generator broadcasts a burst of procedurally generated transmissions. 14481_ ALERT: Intercepting significant anomalous signal. Redirecting assault force. 14481_ Signal Generator's internal power supply exhausted. 14481_ U-05 Engineer builds a Wall. 14482_ Slug penetrates Wall. 14482_ K-01 Serf cleans the Control Node. 14492_ Slammed into K-01 Serf. 14504_ C-30 ARC bursts open, deploying its payload. 14504_ G-67 Veteran unfolds itself. 14504_ L-61 Swordsman unfolds itself. 14504_ M-36 Artificer unfolds itself. Map ----- +----------------------------------------------------+ | ??????????????# # / #??????????????? | | ?????????????# # ## #??????????????? | | ?????########/## # ## #??????????????? | | ???# | # # ## #??????????????? | | ?# # ############ #??????????????? | | # ! # #???# #????# #??????????????? | | ?? # ! ! + #??##;###### ##### ####?????? | | ??????## ! # #??# # " " # " #?????? | | ??????#% # #??# < ##### ##### ####?????? | | ??????## # #??# u #???# #???? #????????? | | ???????# "" "" # #??# #??##/#####+#????????? | | ???????########### #??# #??# #????????? | | ????????########?# #??# #??# " "" #????????# | | ????????# ?# #??# #??#! " T" ###### # | | #???????# " # #??# #??# " "" # # | | #??????# " # #??# A#??# + | | # #?????# " !! + #??# k#??# " " " # # | | ?#"#????# !! # #??# #??# " " " # #####+## | | ?? ???# " # #??# k#??# " " " # #??????? | | ???#"#??# " ?# #??# #??#= # #??????? | | ????# #?# " ?# #??# u#####+####### #??????? | | ?????# ## ??#% #??# # """ " " # #??????? | | ?????# "########## #??# # %g A + +??????? | | ??????#" # #??#= #gmgl # #??????? | | ??????## """" # #?## ; * # #??????? | | ???????# """" # ###;@ %####"######## #??????? | | ???????# """" + R R! #??## #???###/####???? | | ???????# """" # #;#!#+####??##???# #???? | | ???????# * #% # #???????# """ ##### | | #### !% # % # " " #???????# " | | !!!" " # # " " #???????# "T" " # # | | !!!" ########### #! " " " #???????# """ ###?? | | !!!############## # #???????# #???? | | ?# !# # " #???????########???# | | "??+!" " " " " # # " #??????????????????# | | ??"?# " " " " " # # " #??????????????????# | | ??T?# " " " " # # #?????????????????## | | ??"?# # ########+#?????????????????? | | ?? ?# " " " " # #??????# #??????????????????# | | ?? ?# " " " " # #??????# #??????????????????# | | ##/## " " " " # #??????# #??????????????????# | | ## ! # ######## ############???????# | | + ! # # ! #???????# | | # ## # # ######### | | # ## # # """ """ / | | " #########+##### # ######### | | # #?# %% + """ """ #???????? | | # #?# *=% % # #???????? | | " #?# ###+################ # """ """ #???????? | | # #?# # #????# # #???????? | +----------------------------------------------------+ Best States ------------- Heat Dissipation 93 Coolant Potential 180 Energy Generation 25 Energy Capacity 350 Matter Stores 300 Matter Capacity 300 Sight Range 22 Robot Scan Range 20 Terrain Scan Density 110 ECM Strength 1 Armor Coverage 600 Resistance: TH 25 Melee Speed Boost 20 Evasion (%) 64 Targeting Accuracy 6 Target Analysis 6 Recoil Reduction 4 Offensive Hacking 50 Defensive Hacking 20 Item Schematics ----------------- Beamcaster | -7/Zion | Free Flamer | -7/Zion | Free Phasing Sabre | -7/Zion | Free Cesium-ion Thruster | -6/Factory | Scanalyzed Robot Schematics ------------------ None Fabricated ------------ Nothing Alien Tech Used ----------------- None Achievements -------------- Collateral Damage Decoder Ring Challenges ------------ None Game ------ Seed LayeredModifiedShielding Manual? 0 Play Time 04:10:10 Cumulative 93.4 hours Start 2024.05.17 @ 12:00:41 End 2024.05.17 @ 20:21:45 Sessions 1 Manual Loads 0 Difficulty Rogue Special Mode None Game No. 71 Rogue 71 Adventurer 0 Explorer 0 Win Type - Total 2 Types 2/0/0/0/0/0/0/0/0 Lore% 30 Gallery% 47 Achievement% 42 Wizard Run 0 Options --------- Layout 0 ASCII 0 Keyboard 1 Movement Numpad Keybinds 0 Fullscreen 2 Font 18/SmallcapsGlow Map View 76x50 Zoom Use 0% Tactical HUD 1 Map Filters NONE Filters NONE Steam 1 RUN: ecbcaaca-8890-4030-a826-01924b11ea10